[Event "NJSK 2021 Meisjes A&B"]
[Site "Almelo, Netherlands"]
[Date "2021.08.06"]
[Round "6.4"]
[White "Martinez, Sara"]
[Black "Bogouslavskii, Veronique"]
[Result "0-1"]
[TimeControl "90min/40moves + 30sec/move"]
[WhiteElo "1528"]
[BlackElo "1207"]

1. e4 {[%clk 01:30:58]} {[%emt 00:00:02]} e5 {[%clk 01:30:55]} {[%emt
00:00:05]} 2. Nf3 {[%clk 01:31:23]} {[%emt 00:00:05]} Nc6 {[%clk 01:31:20]}
{[%emt 00:00:05]} 3. d4 {[%clk 01:31:48]} {[%emt 00:00:05]} exd4 {[%clk
01:31:42]} {[%emt 00:00:08]} 4. Nxd4 {[%clk 01:32:12]} {[%emt 00:00:07]} Qh4
{[%clk 01:31:59]} {[%emt 00:00:13]} 5. Nb5 {[%clk 01:32:18]} {[%emt 00:00:25]}
Bb4+ {[%clk 01:31:55]} {[%emt 00:00:34]} 6. c3 {[%clk 01:32:12]} {[%emt
00:00:36]} Ba5 {[%clk 01:28:30]} {[%emt 00:03:55]} 7. Be3 {[%clk 01:21:44]}
{[%emt 00:10:58]} Qxe4 {[%clk 01:24:26]} {[%emt 00:04:34]} 8. Nd2 {[%clk
01:21:33]} {[%emt 00:00:41]} Qe7 {[%clk 01:21:41]} {[%emt 00:03:15]} 9. Nc4
{[%clk 01:15:40]} {[%emt 00:06:23]} d6 {[%clk 01:16:48]} {[%emt 00:05:22]} 10.
Nxa5 {[%clk 01:13:38]} {[%emt 00:02:32]} Nxa5 {[%clk 01:16:57]} {[%emt
00:00:21]} 11. Qa4 {[%clk 01:11:19]} {[%emt 00:02:49]} Nc6 {[%clk 01:16:26]}
{[%emt 00:01:02]} 12. Bd3 {[%clk 01:08:39]} {[%emt 00:03:10]} Nf6 {[%clk
01:14:03]} {[%emt 00:02:53]} 13. O-O-O {[%clk 01:03:33]} {[%emt 00:05:35]} O-O
{[%clk 01:12:49]} {[%emt 00:01:44]} 14. Qh4 {[%clk 00:58:01]} {[%emt 00:06:02]}
Ne5 {[%clk 01:11:53]} {[%emt 00:01:26]} 15. Bxh7+ {[%clk 00:55:26]} {[%emt
00:03:05]} Kh8 {[%clk 01:11:30]} {[%emt 00:00:53]} 16. Bc2+ {[%clk 00:54:48]}
{[%emt 00:01:09]} Kg8 {[%clk 01:11:28]} {[%emt 00:00:32]} 17. Bg5 {[%clk
00:52:16]} {[%emt 00:03:02]} Ng6 {[%clk 01:07:04]} {[%emt 00:04:54]} 18. Bxf6
{[%clk 00:42:06]} {[%emt 00:10:40]} gxf6 {[%clk 01:06:59]} {[%emt 00:00:35]} 19.
Qg3 {[%clk 00:40:07]} {[%emt 00:02:29]} f5 {[%clk 01:02:14]} {[%emt 00:05:15]}
20. Bb3 {[%clk 00:37:03]} {[%emt 00:03:34]} Kg7 {[%clk 01:00:00]} {[%emt
00:02:43]} 21. Rhe1 {[%clk 00:34:25]} {[%emt 00:03:08]} Qd8 {[%clk 00:56:39]}
{[%emt 00:03:52]} 22. f4 {[%clk 00:31:40]} {[%emt 00:03:15]} a6 {[%clk
00:53:46]} {[%emt 00:03:23]} 23. Nd4 {[%clk 00:31:28]} {[%emt 00:00:43]} Bd7
{[%clk 00:51:02]} {[%emt 00:03:14]} 24. Re3 {[%clk 00:23:44]} {[%emt 00:08:14]}
b5 {[%clk 00:47:37]} {[%emt 00:03:55]} 25. Bd5 {[%clk 00:21:37]} {[%emt
00:02:37]} Rc8 {[%clk 00:45:48]} {[%emt 00:02:19]} 26. Nc6 {[%clk 00:18:46]}
{[%emt 00:03:21]} Qf6 {[%clk 00:42:31]} {[%emt 00:03:47]} 27. Rde1 {[%clk
00:12:16]} {[%emt 00:07:01]} Rce8 {[%clk 00:35:47]} {[%emt 00:07:14]} 28. Ne7
{[%clk 00:08:06]} {[%emt 00:04:39]} Rh8 {[%clk 00:33:29]} {[%emt 00:02:49]} 29.
R3e2 {[%clk 00:05:34]} {[%emt 00:03:03]} Kf8 {[%clk 00:26:44]} {[%emt
00:07:15]} 30. Nxg6+ {[%clk 00:04:14]} {[%emt 00:01:49]} Qxg6 {[%clk 00:24:06]}
{[%emt 00:03:08]} 31. Rxe8+ {[%clk 00:03:54]} {[%emt 00:00:51]} Bxe8 {[%clk
00:24:24]} {[%emt 00:00:11]} 32. Qe3 {[%clk 00:03:49]} {[%emt 00:00:35]} Kg7
{[%clk 00:24:47]} {[%emt 00:00:06]} 33. Qd4+ {[%clk 00:03:59]} {[%emt
00:00:21]} Qf6 {[%clk 00:23:59]} {[%emt 00:01:18]} 34. Qxf6+ {[%clk 00:03:27]}
{[%emt 00:01:02]} Kxf6 {[%clk 00:24:27]} {[%emt 00:00:01]} 35. h3 {[%clk
00:03:36]} {[%emt 00:00:22]} c6 {[%clk 00:24:18]} {[%emt 00:00:38]} 36. Bf3
{[%clk 00:03:30]} {[%emt 00:00:36]} Bd7 {[%clk 00:24:33]} {[%emt 00:00:15]} 37.
Kd2 {[%clk 00:03:41]} {[%emt 00:00:20]} a5 {[%clk 00:22:24]} {[%emt 00:02:39]}
38. Kd3 {[%clk 00:03:03]} {[%emt 00:01:07]} c5 {[%clk 00:18:50]} {[%emt
00:04:03]} 39. Bd5 {[%clk 00:02:37]} {[%emt 00:00:56]} Be6 {[%clk 00:18:32]}
{[%emt 00:00:48]} 40. c4 {[%clk 00:01:51]} {[%emt 00:01:17]} Bxd5 {[%clk
00:17:14]} {[%emt 00:01:48]} 41. cxd5 {[%clk 00:00:46]} {[%emt 00:01:36]} Rg8
{[%clk 00:17:28]} {[%emt 00:00:15]} 42. Re2 {[%clk 00:27:25]} {[%emt 00:03:51]}
c4+ {[%clk 00:46:28]} {[%emt 00:01:30]} 43. Kc2 {[%clk 00:26:51]} {[%emt
00:01:04]} Rg3 {[%clk 00:46:38]} {[%emt 00:00:20]} 44. Kc1 {[%clk 00:24:46]}
{[%emt 00:02:35]} Rd3 {[%clk 00:46:28]} {[%emt 00:00:39]} 45. Rd2 {[%clk
00:24:59]} {[%emt 00:00:17]} Re3 {[%clk 00:46:34]} {[%emt 00:00:24]} 46. Kd1
{[%clk 00:22:56]} {[%emt 00:02:34]} Re4 {[%clk 00:44:53]} {[%emt 00:02:11]} 47.
Rf2 {[%clk 00:20:53]} {[%emt 00:02:33]} Rd4+ {[%clk 00:45:04]} {[%emt
00:00:19]} 48. Kc2 {[%clk 00:20:51]} {[%emt 00:00:33]} Rxd5 {[%clk 00:43:49]}
{[%emt 00:01:44]} 49. Rd2 {[%clk 00:20:13]} {[%emt 00:01:07]} Rxd2+ {[%clk
00:42:50]} {[%emt 00:01:29]} 50. Kxd2 {[%clk 00:20:38]} {[%emt 00:00:05]} d5
{[%clk 00:43:08]} {[%emt 00:00:12]} 51. Kc3 {[%clk 00:20:47]} {[%emt 00:00:21]}
b4+ {[%clk 00:37:06]} {[%emt 00:06:33]} 52. Kd4 {[%clk 00:18:59]} {[%emt
00:02:18]} a4 {[%clk 00:35:25]} {[%emt 00:02:10]} 53. g3 {[%clk 00:17:06]}
{[%emt 00:02:23]} Kg6 {[%clk 00:32:33]} {[%emt 00:03:21]} 54. Ke3 {[%clk
00:16:05]} {[%emt 00:01:32]} b3 {[%clk 00:24:48]} {[%emt 00:08:15]} 55. axb3
{[%clk 00:15:10]} {[%emt 00:01:24]} c3 {[%clk 00:23:27]} {[%emt 00:01:51]} 56.
Kd3 {[%clk 00:15:28]} {[%emt 00:00:12]} cxb2 {[%clk 00:22:56]} {[%emt
00:01:02]} 57. Kc2 {[%clk 00:15:52]} {[%emt 00:00:06]} a3 {[%clk 00:23:09]}
{[%emt 00:00:17]} 0-1

[Event "NJSK 2021 Meisjes A&B"]
[Site "Almelo, Netherlands"]
[Date "2021.08.06"]
[Round "6.5"]
[White "Basa, Manasvita"]
[Black "Honkoop, Stella"]
[Result "1-0"]
[TimeControl "90min/40moves + 30sec/move"]
[WhiteElo "1711"]
[BlackElo "1573"]

1. e4 {[%clk 01:30:57]} {[%emt 00:00:03]} c5 {[%clk 01:30:55]} {[%emt
00:00:05]} 2. Nf3 {[%clk 01:31:23]} {[%emt 00:00:04]} Nc6 {[%clk 01:31:19]}
{[%emt 00:00:07]} 3. d4 {[%clk 01:31:45]} {[%emt 00:00:07]} cxd4 {[%clk
01:31:41]} {[%emt 00:00:08]} 4. Nxd4 {[%clk 01:32:10]} {[%emt 00:00:05]} Nf6
{[%clk 01:31:59]} {[%emt 00:00:13]} 5. Nc3 {[%clk 01:32:28]} {[%emt 00:00:11]}
e5 {[%clk 01:32:14]} {[%emt 00:00:15]} 6. Ndb5 {[%clk 01:32:52]} {[%emt
00:00:07]} d6 {[%clk 01:32:33]} {[%emt 00:00:12]} 7. Nd5 {[%clk 01:33:12]}
{[%emt 00:00:09]} Nxd5 {[%clk 01:32:44]} {[%emt 00:00:19]} 8. exd5 {[%clk
01:33:36]} {[%emt 00:00:06]} Nb8 {[%clk 01:33:00]} {[%emt 00:00:14]} 9. c4
{[%clk 01:19:25]} {[%emt 00:14:41]} a6 {[%clk 01:31:18]} {[%emt 00:02:13]} 10.
Nc3 {[%clk 01:19:50]} {[%emt 00:00:04]} Be7 {[%clk 01:31:28]} {[%emt 00:00:21]}
11. Be2 {[%clk 01:19:05]} {[%emt 00:01:14]} O-O {[%clk 01:31:27]} {[%emt
00:00:31]} 12. O-O {[%clk 01:19:14]} {[%emt 00:00:21]} f5 {[%clk 01:31:26]}
{[%emt 00:00:32]} 13. f4 {[%clk 01:06:49]} {[%emt 00:12:55]} e4 {[%clk
01:27:11]} {[%emt 00:04:45]} 14. Be3 {[%clk 01:06:50]} {[%emt 00:00:29]} Nd7
{[%clk 01:20:22]} {[%emt 00:07:21]} 15. Na4 {[%clk 01:04:29]} {[%emt 00:02:51]}
Rb8 {[%clk 01:18:11]} {[%emt 00:02:41]} 16. Qb3 {[%clk 01:02:06]} {[%emt
00:02:52]} Bf6 {[%clk 01:06:15]} {[%emt 00:12:26]} 17. c5 {[%clk 00:52:14]}
{[%emt 00:10:22]} dxc5 {[%clk 01:03:01]} {[%emt 00:03:44]} 18. Nxc5 {[%clk
00:52:36]} {[%emt 00:00:09]} Nxc5 {[%clk 01:03:01]} {[%emt 00:00:30]} 19. Bxc5
{[%clk 00:52:54]} {[%emt 00:00:11]} Re8 {[%clk 01:02:00]} {[%emt 00:01:31]} 20.
Bb6 {[%clk 00:48:05]} {[%emt 00:05:20]} Qd7 {[%clk 00:59:05]} {[%emt 00:03:25]}
21. d6+ {[%clk 00:46:52]} {[%emt 00:01:43]} Kh8 {[%clk 00:58:12]} {[%emt
00:01:23]} 22. Rfd1 {[%clk 00:45:59]} {[%emt 00:01:23]} Bd8 {[%clk 00:50:20]}
{[%emt 00:08:22]} 23. Rac1 {[%clk 00:43:48]} {[%emt 00:02:41]} Re6 {[%clk
00:40:02]} {[%emt 00:10:49]} 24. Rc7 {[%clk 00:11:17]} {[%emt 00:33:00]} Qe8
{[%clk 00:34:43]} {[%emt 00:05:50]} 25. Ba7 {[%clk 00:10:09]} {[%emt 00:01:37]}
Rxd6 {[%clk 00:27:36]} {[%emt 00:07:37]} 26. Bxb8 {[%clk 00:08:19]} {[%emt
00:02:20]} Bxc7 {[%clk 00:25:03]} {[%emt 00:03:04]} 27. Bxc7 {[%clk 00:08:41]}
{[%emt 00:00:08]} Rxd1+ {[%clk 00:24:15]} {[%emt 00:01:18]} 28. Qxd1 {[%clk
00:09:04]} {[%emt 00:00:06]} Bd7 {[%clk 00:24:19]} {[%emt 00:00:26]} 29. Qd6
{[%clk 00:06:57]} {[%emt 00:02:37]} Qc8 {[%clk 00:22:52]} {[%emt 00:01:58]} 30.
Kf2 {[%clk 00:05:56]} {[%emt 00:01:31]} h6 {[%clk 00:21:15]} {[%emt 00:02:07]}
31. Bh5 {[%clk 00:05:23]} {[%emt 00:01:02]} Be8 {[%clk 00:20:11]} {[%emt
00:01:34]} 32. Bxe8 {[%clk 00:04:55]} {[%emt 00:00:58]} Qxe8 {[%clk 00:20:36]}
{[%emt 00:00:05]} 33. Qd8 {[%clk 00:04:15]} {[%emt 00:01:09]} Qxd8 {[%clk
00:21:01]} {[%emt 00:00:05]} 34. Bxd8 {[%clk 00:04:39]} {[%emt 00:00:07]} Kg8
{[%clk 00:21:25]} {[%emt 00:00:07]} 35. Ke3 {[%clk 00:04:25]} {[%emt 00:00:43]}
Kf7 {[%clk 00:21:47]} {[%emt 00:00:09]} 36. h3 {[%clk 00:03:28]} {[%emt
00:01:28]} Ke6 {[%clk 00:19:42]} {[%emt 00:02:35]} 37. Kd4 {[%clk 00:03:29]}
{[%emt 00:00:28]} Kd6 {[%clk 00:17:10]} {[%emt 00:03:03]} 38. Bh4 {[%clk
00:03:49]} {[%emt 00:00:10]} b6 {[%clk 00:16:46]} {[%emt 00:00:54]} 39. Kc4
{[%clk 00:02:34]} {[%emt 00:01:44]} Kc6 {[%clk 00:15:36]} {[%emt 00:01:40]} 40.
Kd4 {[%clk 00:02:05]} {[%emt 00:00:59]} Kd6 {[%clk 00:15:40]} {[%emt 00:00:26]}
41. a3 {[%clk 00:01:27]} {[%emt 00:01:08]} g6 {[%clk 00:14:11]} {[%emt
00:01:59]} 42. b3 {[%clk 00:30:17]} {[%emt 00:01:40]} Ke6 {[%clk 00:43:37]}
{[%emt 00:01:04]} 43. a4 {[%clk 00:30:23]} {[%emt 00:00:23]} Kd6 {[%clk
00:42:04]} {[%emt 00:02:03]} 44. b4 {[%clk 00:30:45]} {[%emt 00:00:08]} h5
{[%clk 00:33:39]} {[%emt 00:08:56]} 45. b5 {[%clk 00:29:29]} {[%emt 00:01:46]}
axb5 {[%clk 00:31:19]} {[%emt 00:02:51]} 46. axb5 {[%clk 00:29:53]} {[%emt
00:00:05]} e3 {[%clk 00:27:53]} {[%emt 00:03:56]} 47. Kxe3 {[%clk 00:27:34]}
{[%emt 00:02:49]} Kd5 {[%clk 00:24:38]} {[%emt 00:03:45]} 48. Bd8 {[%clk
00:26:22]} {[%emt 00:01:43]} Kc4 {[%clk 00:23:08]} {[%emt 00:02:00]} 49. Bxb6
{[%clk 00:26:41]} {[%emt 00:00:11]} Kxb5 {[%clk 00:23:35]} {[%emt 00:00:03]} 50.
Bd8 {[%clk 00:24:00]} {[%emt 00:03:11]} Kc4 {[%clk 00:20:24]} {[%emt 00:03:42]}
51. Bf6 {[%clk 00:24:00]} {[%emt 00:00:29]} Kd5 {[%clk 00:19:19]} {[%emt
00:01:35]} 52. Kf3 {[%clk 00:23:19]} {[%emt 00:01:10]} Ke6 {[%clk 00:19:32]}
{[%emt 00:00:18]} 53. Bd8 {[%clk 00:23:42]} {[%emt 00:00:07]} Kd7 {[%clk
00:19:42]} {[%emt 00:00:20]} 54. Ba5 {[%clk 00:23:40]} {[%emt 00:00:31]} Ke6
{[%clk 00:17:00]} {[%emt 00:03:13]} 55. Kg3 {[%clk 00:23:51]} {[%emt 00:00:18]}
Ke7 {[%clk 00:13:32]} {[%emt 00:03:58]} 56. Kh4 {[%clk 00:23:30]} {[%emt
00:00:50]} Kf7 {[%clk 00:13:03]} {[%emt 00:00:59]} 57. Kg5 {[%clk 00:23:53]}
{[%emt 00:00:07]} Kg7 {[%clk 00:12:35]} {[%emt 00:00:59]} 58. Bc3+ {[%clk
00:24:17]} {[%emt 00:00:05]} Kh7 {[%clk 00:12:43]} {[%emt 00:00:22]} 59. Bd4
{[%clk 00:24:32]} {[%emt 00:00:15]} h4 {[%clk 00:12:41]} {[%emt 00:00:32]} 60.
Bc3 {[%clk 00:24:53]} {[%emt 00:00:09]} 1-0

[Event "NJSK 2021 Meisjes A&B"]
[Site "Almelo, Netherlands"]
[Date "2021.08.06"]
[Round "6.6"]
[White "Venema, Katja"]
[Black "Maris, Evi"]
[Result "1-0"]
[TimeControl "90min/40moves + 30sec/move"]
[WhiteElo "1356"]
[BlackElo "1232"]

1. d4 {[%clk 01:30:56]} {[%emt 00:00:03]} d5 {[%clk 01:30:57]} {[%emt
00:00:04]} 2. c4 {[%clk 01:31:19]} {[%emt 00:00:07]} e6 {[%clk 01:31:22]}
{[%emt 00:00:05]} 3. Nc3 {[%clk 01:31:40]} {[%emt 00:00:09]} c5 {[%clk
01:31:41]} {[%emt 00:00:12]} 4. Nf3 {[%clk 01:30:52]} {[%emt 00:01:17]} Nc6
{[%clk 01:31:47]} {[%emt 00:00:24]} 5. Bf4 {[%clk 01:30:18]} {[%emt 00:01:04]}
Nf6 {[%clk 01:31:57]} {[%emt 00:00:19]} 6. Nb5 {[%clk 01:29:32]} {[%emt
00:01:16]} e5 {[%clk 01:30:43]} {[%emt 00:01:44]} 7. dxe5 {[%clk 01:28:11]}
{[%emt 00:01:50]} Nh5 {[%clk 01:30:36]} {[%emt 00:00:38]} 8. Bg5 {[%clk
01:27:04]} {[%emt 00:01:36]} Be7 {[%clk 01:30:48]} {[%emt 00:00:19]} 9. Bxe7
{[%clk 01:25:36]} {[%emt 00:01:58]} Nxe7 {[%clk 01:30:50]} {[%emt 00:00:27]} 10.
Nd6+ {[%clk 01:24:58]} {[%emt 00:01:08]} Kf8 {[%clk 01:30:28]} {[%emt
00:00:52]} 11. cxd5 {[%clk 01:20:50]} {[%emt 00:04:37]} f6 {[%clk 01:30:00]}
{[%emt 00:00:59]} 12. Nxc8 {[%clk 01:20:01]} {[%emt 00:01:20]} Rxc8 {[%clk
01:29:51]} {[%emt 00:00:38]} 13. e4 {[%clk 01:18:57]} {[%emt 00:01:34]} fxe5
{[%clk 01:29:23]} {[%emt 00:00:58]} 14. Nxe5 {[%clk 01:17:51]} {[%emt
00:01:35]} Nf6 {[%clk 01:29:38]} {[%emt 00:00:16]} 15. Bd3 {[%clk 01:16:13]}
{[%emt 00:02:07]} Qc7 {[%clk 01:28:23]} {[%emt 00:01:45]} 16. Nc4 {[%clk
01:14:09]} {[%emt 00:02:33]} Qf4 {[%clk 01:28:08]} {[%emt 00:00:45]} 17. Qf3
{[%clk 01:12:26]} {[%emt 00:02:14]} Qxf3 {[%clk 01:27:46]} {[%emt 00:00:51]} 18.
gxf3 {[%clk 01:12:52]} {[%emt 00:00:03]} b5 {[%clk 01:28:06]} {[%emt 00:00:11]}
19. Nd6 {[%clk 01:12:44]} {[%emt 00:00:37]} Rb8 {[%clk 01:27:46]} {[%emt
00:00:51]} 20. Bxb5 {[%clk 01:12:08]} {[%emt 00:01:06]} Rb6 {[%clk 01:28:02]}
{[%emt 00:00:14]} 21. Bc6 {[%clk 01:11:25]} {[%emt 00:01:13]} Nxc6 {[%clk
01:28:05]} {[%emt 00:00:28]} 22. dxc6 {[%clk 01:11:37]} {[%emt 00:00:18]} Rxc6
{[%clk 01:28:28]} {[%emt 00:00:06]} 23. O-O-O {[%clk 01:11:35]} {[%emt
00:00:32]} Ke7 {[%clk 01:28:48]} {[%emt 00:00:10]} 24. Nf5+ {[%clk 01:11:46]}
{[%emt 00:00:19]} Kf7 {[%clk 01:29:01]} {[%emt 00:00:17]} 25. Rhg1 {[%clk
01:11:22]} {[%emt 00:00:52]} g6 {[%clk 01:29:11]} {[%emt 00:00:22]} 26. Nd6+
{[%clk 01:11:24]} {[%emt 00:00:29]} Ke6 {[%clk 01:29:21]} {[%emt 00:00:19]} 27.
Nc4 {[%clk 01:09:53]} {[%emt 00:02:01]} Rb8 {[%clk 01:29:00]} {[%emt 00:00:51]}
28. Rg5 {[%clk 01:08:52]} {[%emt 00:01:30]} Rb4 {[%clk 01:28:14]} {[%emt
00:01:16]} 29. b3 {[%clk 01:08:36]} {[%emt 00:00:47]} Rb5 {[%clk 01:26:56]}
{[%emt 00:01:48]} 30. Re5+ {[%clk 01:08:50]} {[%emt 00:00:16]} Kf7 {[%clk
01:27:09]} {[%emt 00:00:17]} 31. Nd6+ {[%clk 01:09:05]} {[%emt 00:00:15]} Rxd6
{[%clk 01:27:20]} {[%emt 00:00:19]} 32. Rxd6 {[%clk 01:09:24]} {[%emt
00:00:12]} Nh5 {[%clk 01:27:33]} {[%emt 00:00:17]} 33. Rc6 {[%clk 01:09:00]}
{[%emt 00:00:54]} Nf4 {[%clk 01:27:31]} {[%emt 00:00:32]} 34. Kc2 {[%clk
01:09:04]} {[%emt 00:00:26]} Ra5 {[%clk 01:27:45]} {[%emt 00:00:16]} 35. a4
{[%clk 01:08:55]} {[%emt 00:00:39]} g5 {[%clk 01:27:32]} {[%emt 00:00:43]} 36.
Rexc5 {[%clk 01:07:04]} {[%emt 00:02:21]} Rxc5+ {[%clk 01:27:40]} {[%emt
00:00:23]} 37. Rxc5 {[%clk 01:07:24]} {[%emt 00:00:09]} Ne6 {[%clk 01:28:05]}
{[%emt 00:00:04]} 38. Rd5 {[%clk 01:06:50]} {[%emt 00:01:04]} h6 {[%clk
01:28:06]} {[%emt 00:00:29]} 39. Rd7+ {[%clk 01:07:04]} {[%emt 00:00:16]} Kf6
{[%clk 01:28:24]} {[%emt 00:00:12]} 40. Rxa7 {[%clk 01:06:51]} {[%emt
00:00:43]} Nd4+ {[%clk 01:28:43]} {[%emt 00:00:10]} 41. Kc3 {[%clk 01:06:45]}
{[%emt 00:00:36]} Nxf3 {[%clk 01:29:01]} {[%emt 00:00:12]} 42. Ra6+ {[%clk
01:06:35]} {[%emt 00:00:40]} Kg7 {[%clk 01:29:19]} {[%emt 00:00:12]} 43. h3
{[%clk 01:06:52]} {[%emt 00:00:13]} Ng1 {[%clk 01:29:39]} {[%emt 00:00:09]} 44.
Kd3 {[%clk 01:06:04]} {[%emt 00:01:18]} Nxh3 {[%clk 01:29:59]} {[%emt
00:00:10]} 45. f3 {[%clk 01:06:13]} {[%emt 00:00:22]} Nf4+ {[%clk 01:30:16]}
{[%emt 00:00:13]} 46. Ke3 {[%clk 01:06:29]} {[%emt 00:00:13]} Ng6 {[%clk
01:30:20]} {[%emt 00:00:26]} 47. a5 {[%clk 01:06:32]} {[%emt 00:00:28]} Ne5
{[%clk 01:30:42]} {[%emt 00:00:07]} 48. Ra7+ {[%clk 01:06:43]} {[%emt
00:00:19]} Kf8 {[%clk 01:31:02]} {[%emt 00:00:10]} 49. a6 {[%clk 01:06:47]}
{[%emt 00:00:26]} Nc6 {[%clk 01:31:23]} {[%emt 00:00:09]} 50. Rc7 {[%clk
01:06:41]} {[%emt 00:00:36]} h5 {[%clk 01:31:03]} {[%emt 00:00:50]} 51. Rxc6
{[%clk 01:06:56]} {[%emt 00:00:15]} h4 {[%clk 01:31:24]} {[%emt 00:00:09]} 52.
a7 {[%clk 01:07:22]} {[%emt 00:00:05]} h3 {[%clk 01:31:47]} {[%emt 00:00:07]}
53. a8=Q+ {[%emt 00:00:06]} Ke7 {[%clk 01:32:01]} {[%emt 00:00:15]} 54. Qb7+
{[%clk 01:08:07]} {[%emt 00:00:09]} Kf8 {[%emt 00:00:13]} 55. Rc8# {[%clk
01:08:04]} 1-0